fUSD/lending_fUSD_20260412
["ID","MTS","AMOUNT","RATE_DAILY","PERIOD"]
[420324525,1775970646445,-365.48354951,0.000139,2]
[420324554,1775970703417,711.40960895,0.0003013,120]
[420324555,1775970705581,230.0,0.0003013,120]
[420324556,1775970743769,-780.03436567,0.00045631,120]
[420324557,1775970743796,-2825.82069794,0.00045631,120]
[420324558,1775970743823,-2639.05823116,0.00045631,120]
[420324559,1775970743854,-2500.0,0.00045631,30]
[420324560,1775970743882,-1042.3205496,0.00045631,120]
[420324561,1775970743910,-3102.57133827,0.00045631,120]
[420324562,1775970743936,-1186.90944496,0.00045631,120]
[420324563,1775970743969,-934.05570623,0.00045631,30]
[420324564,1775970744000,-226.84818241,0.00045631,120]
[420324565,1775970744039,-2375.0935371,0.00045631,30]
[420324566,1775970744080,-943.18453261,0.00045631,30]
[420324567,1775970744125,-1015.38490498,0.00045631,30]
[420324568,1775970744173,-1156.98884487,0.00045631,120]
[420324569,1775970744216,-491.44092615,0.00045631,120]
[420324570,1775970744259,-224.97434821,0.00045631,30]
[420324571,1775970744295,-1049.27138678,0.00045631,30]
[420324572,1775970744333,-196.06701529,0.00045631,120]
[420324573,1775970744379,-380.67036103,0.00045631,30]
[420324574,1775970744441,-509.52678834,0.00045631,120]
[420324575,1775970744560,-786.15900931,0.00045631,120]
[420324576,1775970744699,-1691.81423162,0.00045631,120]
[420324577,1775970744755,-1104.48441691,0.00045631,30]
[420324578,1775970744798,-275.62789867,0.00045631,120]
[420324579,1775970745367,-523.09001335,0.00045631,30]
[420324580,1775970745405,-260.15812889,0.00045631,120]
[420324581,1775970745447,-450.64457383,0.00045631,120]
[420324582,1775970745491,-997.0,0.00045631,30]
[420324583,1775970745547,-3190.08835482,0.00045631,120]
[420324584,1775970745579,-269.41288115,0.00045631,120]
[420324585,1775970745609,-257.3584449,0.00045631,30]
[420324586,1775970745634,-421.48828909,0.00045631,120]
[420324587,1775970745667,-494.50514235,0.00045631,120]
[420324588,1775970745697,-965.02442578,0.00045631,30]
[420324589,1775970745723,-1115.05830707,0.00045631,120]
[420324590,1775970745757,-616.36353653,0.00045631,120]
[420324591,1775970745791,-5197.96271349,0.00045631,120]
[420324592,1775970745822,-272.17597239,0.00045631,120]
[420324593,1775970745856,-1432.00820347,0.00045631,120]
[420324594,1775970745906,-2268.76755224,0.00045631,120]
[420324595,1775970745981,-259.50454963,0.00045631,120]
[420324596,1775970746099,-2866.76424759,0.00045631,120]
[420324597,1775970746187,-666.95091294,0.00045631,120]
[420324598,1775970746241,-288.7188174,0.00045631,30]
[420324599,1775970746276,-2993.22767843,0.00045631,30]
[420324600,1775970746310,-1948.64004453,0.00045631,30]
[420324601,1775970746339,-1522.13456821,0.00045631,120]
[420324602,1775970746370,-2586.90301987,0.00045631,30]
[420324603,1775970746399,-293.20597754,0.00045631,120]
[420324604,1775970746428,-756.0,0.00045631,120]
[420324605,1775970746456,-1446.96480573,0.00045631,120]
[420324606,1775970746485,-4909.13915541,0.00045631,120]
[420324607,1775970746513,-1092.31019872,0.00045631,120]
[420324608,1775970746545,-2481.15664018,0.00045631,30]
[420324609,1775970746577,-526.70283018,0.00045631,120]
[420324610,1775970746605,-183.89720462,0.00045631,120]
[420324611,1775970746639,-3850003.22573172,0.00045631,30]
[420324612,1775970746668,-853.54163449,0.00045631,120]
[420324613,1775970746699,-1782.86104413,0.00045631,30]
[420324614,1775970746733,-563.55643582,0.00045631,120]
[420324615,1775970746765,-633.12468974,0.00045631,120]
[420324616,1775970746796,-1132.79628056,0.00045631,30]
[420324617,1775970746832,-200.32869279,0.00045631,120]
[420324618,1775970746867,-2120.77884938,0.00045631,120]
[420324619,1775970746914,-64946.32290276,0.00045631,30]
[420324620,1775970746962,-1271.15661257,0.00045631,120]
[420324621,1775970747013,-2149.81194259,0.00045631,30]
[420324622,1775970747082,-1288.4542554,0.00045631,30]
[420324623,1775970747149,-1683.3313205,0.00045631,120]
[420324624,1775970747231,-279.502221,0.00045631,120]
[420324625,1775970747321,-490.63004282,0.00045631,120]
[420324626,1775970747569,-1514.53333714,0.00045631,120]
[420324627,1775970747789,-2650.45774033,0.00045631,120]
[420324628,1775970747865,-1239.71461001,0.00045631,120]
[420324629,1775970747915,-486.57156711,0.00045631,120]
[420324630,1775970747949,-500.0,0.00045631,120]
[420324631,1775970747981,-503.01351134,0.00045631,30]
[420324632,1775970748014,-1524.82681219,0.00045631,120]
[420324633,1775970748051,-1632.30552873,0.00045631,120]
[420324634,1775970748083,-174.48909924,0.00045631,30]
[420324635,1775970748114,-858.2945774,0.00045631,30]
[420324636,1775970748154,-2093.03365444,0.00045631,120]
[420324637,1775970748193,-3707.35762493,0.00045631,120]
[420324638,1775970748238,-2603.35867907,0.00045631,120]
[420324639,1775970748275,-1785.93351155,0.00045631,120]
[420324640,1775970748347,-277.43894314,0.00045631,120]
[420324641,1775970748382,-202.85625813,0.00045631,120]
[420324642,1775970748431,-1856.57592722,0.00045631,120]
[420324643,1775970748491,-490.32152322,0.00045631,120]
[420324644,1775970748542,-269.21634526,0.00045631,120]
[420324645,1775970748615,-158.55944172,0.00045631,120]
[420324646,1775970748713,-2617.03281519,0.00045631,120]
[420324647,1775970748799,-600.81694654,0.00045631,120]
[420324648,1775970748869,-14517.27604581,0.00045631,120]
[420324649,1775970748993,-205.75043531,0.00045631,120]
[420324650,1775970749119,-549.0,0.00045631,30]
[420324651,1775970749161,-1814.54801001,0.00045631,120]
[420324652,1775970749205,-1039.15241252,0.00045631,120]
[420324653,1775970749249,-500.71878811,0.00045631,120]
[420324654,1775970749281,-3016.66485262,0.00045631,30]
[420324655,1775970749308,-1004.042782,0.00045631,120]
[420324656,1775970749336,-1004.02841384,0.00045631,120]
[420324657,1775970749367,-5000.0,0.00045631,120]
[420324658,1775970749399,-409.86171761,0.00045631,120]
[420324659,1775970749427,-3818.38844838,0.00045631,120]
[420324660,1775970749459,-3818.38844838,0.00045631,120]
[420324661,1775970749492,-3818.38844838,0.00045631,120]
[420324662,1775970749521,-3818.38844838,0.00045631,120]
[420324663,1775970749557,-3818.38844838,0.00045631,120]
[420324664,1775970749590,-3818.38844838,0.00045631,120]
[420324665,1775970749625,-3818.38844838,0.00045631,120]
[420324666,1775970749658,-3818.38844838,0.00045631,120]
[420324667,1775970749690,-3818.38844838,0.00045631,120]
[420324668,1775970749726,-3818.38844838,0.00045631,120]
[420324669,1775970749758,-3818.38844838,0.00045631,120]
[420324670,1775970749800,-3818.38844838,0.00045631,120]
[420324671,1775970749845,-3818.38844838,0.00045631,120]
[420324672,1775970749902,-3818.38844838,0.00045631,120]
[420324673,1775970749946,-3818.38844838,0.00045631,120]
[420324674,1775970749979,-3818.38844838,0.00045631,120]
[420324675,1775970750041,-3818.38844837,0.00045631,120]
[420324676,1775970750090,-3818.38844837,0.00045631,120]
[420324677,1775970750137,-3818.38844837,0.00045631,120]
[420324678,1775970750228,-3818.38844837,0.00045631,120]
[420324679,1775970750299,-575000.0,0.00045631,30]
[420324680,1775970750339,-2989.0,0.00045631,120]
[420324681,1775970750376,-100000.0,0.00045631,120]
[420324682,1775970750418,-1000.0,0.00045631,120]
[420324683,1775970750485,-1000.0,0.00045631,120]
[420324684,1775970750554,-1000.0,0.00045631,120]
[420324685,1775970750599,-613.82,0.00045631,120]
[420324686,1775970750636,-888.0,0.00045631,120]
[420324687,1775970750669,-888.0,0.00045631,120]
[420324688,1775970750701,-888.0,0.00045631,120]
[420324689,1775970750732,-276.84205699,0.00045631,120]
[420324690,1775970750761,-5000.0,0.00045631,120]
[420324691,1775970750794,-1200.0,0.00045631,120]
[420324692,1775970750823,-1000.0,0.00045631,30]
[420324693,1775970750851,-265181.77374627,0.00045631,120]
[420324694,1775970750879,-9000.15624845,0.00045631,30]
[420324695,1775970750906,-8216.58907016,0.00045631,30]
[420324696,1775970750936,-3921.92829881,0.00045631,120]
[420324697,1775970751400,-10765.1764597,0.00045631,120]
[420324698,1775970751453,-20000.0,0.00045631,120]
[420324699,1775970751517,-1000000.0,0.00045631,30]
[420324700,1775970751572,-1000000.0,0.00045631,60]
[420324701,1775970751633,-652.99,0.00045631,120]
[420324702,1775970751781,-50000.0,0.00045631,65]
[420324703,1775970751875,-50000.0,0.00045631,65]
[420324704,1775970751924,-50000.0,0.00045631,66]
[420324705,1775970751975,-50000.0,0.00045631,67]
[420324706,1775970752012,-1000000.0,0.00045631,40]
[420324707,1775970752042,-24646.303352,0.00045631,120]
[420324708,1775970752078,-5000.0,0.00045631,120]
[420324709,1775970752113,-1676.21812648,0.00045631,120]
[420324710,1775970752144,-2000.0,0.00045631,120]
[420324711,1775970752171,-243.0,0.00045631,120]
[420324712,1775970752204,-161.0,0.00045631,120]
[420324713,1775970752233,-2276.09270469,0.00045631,30]
[420324714,1775970752262,-1205.57191182,0.00045631,120]
[420324715,1775970752290,-150.0,0.00045631,120]
[420324716,1775970752321,-44163.90127502,0.00045631,50]
[420324717,1775970752349,-3150.0,0.00045631,120]
[420324718,1775970752381,-572279.05930561,0.00045631,60]
[420324719,1775970767749,-585505.17069439,0.00045631,60]
[420324720,1775970767775,-3000.0,0.00045631,120]
[420324721,1775970767806,-3000.0,0.00045631,120]
[420324722,1775970767839,-1547.5,0.00045631,120]
[420324723,1775970767865,-35010.0,0.00045631,120]
[420324724,1775970767901,-2839.0,0.00045631,120]
[420324725,1775970767934,-178.40383575,0.00045631,30]
[420324726,1775970767961,-3367.95110866,0.00045631,120]
[420324727,1775970767996,-172.41113229,0.00045631,120]
[420324728,1775970768037,-1009.0,0.00045631,120]
[420324729,1775970768081,-214.83939089,0.00045631,120]
[420324730,1775970768120,-230.0899495,0.00045631,120]
[420324731,1775970768151,-226.6,0.00045631,120]
[420324732,1775970768181,-1655.06365773,0.00045631,120]
[420324733,1775970768215,-5847.70784981,0.00045631,120]
[420324734,1775970768246,-214.77605931,0.00045631,120]
[420324735,1775970768279,-334.27607424,0.00045631,60]
[420324736,1775970768310,-2387.10378921,0.00045631,120]
[420324737,1775970768344,-11579.1794875,0.00045631,120]
[420324738,1775970768369,-2461.29652992,0.00045631,30]
[420324739,1775970768405,-2300.0,0.00045631,120]
[420324740,1775970768440,-746.12018754,0.00045631,90]
[420324741,1775970768482,-2989.53622719,0.00045631,68]
[420324742,1775970768525,-40000.0,0.00045631,60]
[420324743,1775970768575,-1645.91268133,0.00045631,120]
[420324744,1775970768634,-183.31004746,0.00045631,120]
[420324745,1775970768740,-576.58273372,0.00045631,30]
[420324746,1775970768820,-2952.0,0.00045631,120]
[420324747,1775970768907,-4244.0,0.00045631,120]
[420324748,1775970768970,-559.44,0.00045631,30]
[420324749,1775970769026,-609244.82,0.00045631,60]
[420324750,1775970769069,-206793.82,0.00045631,60]
[420324751,1775970769103,-1294.35273941,0.00045631,120]
[420324752,1775970769139,-32512.32624506,0.00045631,120]
[420324753,1775970769166,-100000.0,0.00045631,30]
[420324754,1775970769198,-100000.0,0.00045631,30]
[420324755,1775970769227,-2146.37,0.00045631,120]
[420324756,1775970769254,-219.0,0.00045631,120]
[420324757,1775970769284,-100000.0,0.00045631,30]
[420324758,1775970769313,-100000.0,0.00045631,30]
[420324759,1775970769342,-100000.0,0.00045631,30]
[420324760,1775970769372,-434.1848279,0.00045631,120]
[420324761,1775970769401,-100000.0,0.00045631,30]
[420324762,1775970769430,-192.19922867,0.00045631,120]
[420324763,1775970769460,-100000.0,0.00045631,30]
[420324764,1775970769488,-30000.0,0.00045631,120]
[420324765,1775970769522,-1000.0,0.00045631,120]
[420324766,1775970769552,-1000.0,0.00045631,120]
[420324767,1775970769585,-1000.0,0.00045631,120]
[420324768,1775970769622,-1000.0,0.00045631,120]
[420324769,1775970769660,-1000.0,0.00045631,120]
[420324770,1775970769692,-1000.0,0.00045631,120]
[420324771,1775970769729,-1000.0,0.00045631,120]
[420324772,1775970769772,-1000.0,0.00045631,120]
[420324773,1775970769813,-1000.0,0.00045631,120]
[420324774,1775970769859,-1000.0,0.00045631,120]
[420324775,1775970769897,-1000.0,0.00045631,120]
[420324776,1775970769942,-1000.0,0.00045631,120]
[420324777,1775970770026,-1000.0,0.00045631,120]
[420324778,1775970770118,-646.21,0.00045631,120]
[420324779,1775970770187,-3025.0,0.00045631,120]
[420324780,1775970770219,-8000.0,0.00045631,30]
[420324781,1775970770612,-297.96469354,0.00045631,120]
[420324782,1775970770703,-178734.7504848,0.00045631,120]
[420324783,1775970770750,-430.877526,0.00045631,120]
[420324784,1775970770788,-26000.0,0.00045631,120]
[420324785,1775970770816,-2046.8755635,0.00045631,120]
[420324786,1775970770845,-364.12664162,0.00045631,120]
[420324787,1775970770875,-1302.0,0.00045631,120]
[420324788,1775970770901,-8020.1164462,0.00045631,60]
[420324789,1775970770928,-541.53895866,0.00045631,120]
[420324790,1775970770954,-1304.2078151,0.00045631,60]
[420324791,1775970770984,-831.0,0.00045631,120]
[420324792,1775970771015,-51406.26,0.00045631,120]
[420324793,1775970771042,-678.86932108,0.00045631,120]
[420324794,1775970771070,-2531.0,0.00045631,120]
[420324795,1775970771101,-600000.0,0.00045631,40]
[420324796,1775970771127,-2515.40312859,0.00045631,120]
[420324797,1775970771152,-3494867.28811386,0.00045631,30]
[420324798,1775970771178,-287.69,0.00045631,120]
[420324799,1775970771206,-2967.25077259,0.00045631,120]
[420324800,1775970771238,-50000.0,0.00045631,68]
[420324801,1775970771269,-50000.0,0.00045631,69]
[420324802,1775970771306,-50000.0,0.00045631,70]
[420324803,1775970771343,-50000.0,0.00045631,30]
[420324804,1775970771378,-50000.0,0.00045631,31]
[420324805,1775970771419,-50000.0,0.00045631,32]
[420324806,1775970771459,-50000.0,0.00045631,34]
[420324807,1775970771506,-50000.0,0.00045631,31]
[420324808,1775970771553,-47142.32,0.00045631,120]
[420324809,1775970771600,-274.68406166,0.00045631,120]
[420324810,1775970771641,-13773.97095744,0.00045631,120]
[420324811,1775970771669,-106723.17863946,0.00045631,120]
[420324812,1775970771701,-38782.34161288,0.00045631,30]
[420324813,1775970771729,-226.70588,0.00045631,60]
[420324814,1775970771761,-593.4143,0.00045631,60]
[420324815,1775970771794,-226.70588,0.00045631,60]
[420324816,1775970771831,-593.4143,0.00045631,60]
[420324817,1775970771871,-226.70588,0.00045631,60]
[420324818,1775970771914,-593.4143,0.00045631,60]
[420324819,1775970771965,-226.70588,0.00045631,60]
[420324820,1775970772016,-593.4143,0.00045631,60]
[420324821,1775970772065,-226.70588,0.00045631,60]
[420324822,1775970772147,-593.4143,0.00045631,60]
[420324823,1775970772221,-4903.0,0.00045631,120]
[420324824,1775970772259,-2000.0,0.00045631,120]
[420324825,1775970772300,-2000.0,0.00045631,120]
[420324826,1775970772340,-2000.0,0.00045631,120]
[420324827,1775970772373,-1747.0417478,0.00045631,120]
[420324828,1775970772413,-50000.0,0.00045631,33]
[420324829,1775970772447,-18126.54,0.00045631,30]
[420324830,1775970772486,-27000.0,0.00045631,60]
[420324831,1775970772527,-15584.01,0.00045631,120]
[420324832,1775970772562,-19751.75521262,0.00045631,30]
[420324833,1775970772602,-1000.0,0.00045631,30]
[420324834,1775970772633,-1023.11305816,0.00045631,120]
[420324835,1775970772677,-50000.0,0.00045631,35]
[420324836,1775970772704,-150000.0,0.00045631,120]
[420324837,1775970772737,-8179.06,0.00045631,120]
[420324838,1775970772766,-7011.26,0.00045631,120]
[420324839,1775970772792,-3049.33313204,0.00045631,120]
[420324840,1775970772819,-10000.0,0.00045631,30]
[420324841,1775970772845,-10000.0,0.00045631,30]
[420324842,1775970772871,-6000.0,0.00045631,30]
[420324843,1775970772897,-8000.0,0.00045631,30]
[420324844,1775970772924,-5000.0,0.00045631,30]
[420324845,1775970772952,-6637.20530472,0.00045631,30]
[420324846,1775970772979,-272.0,0.00045631,120]
[420324847,1775970773009,-272.0,0.00045631,120]
[420324848,1775970773046,-272.0,0.00045631,120]
[420324849,1775970773080,-272.0,0.00045631,120]
[420324850,1775970773116,-272.0,0.00045631,120]
[420324851,1775970773149,-272.0,0.00045631,120]
[420324852,1775970773180,-272.0,0.00045631,120]
[420324853,1775970773215,-272.0,0.00045631,120]
[420324854,1775970773248,-272.0,0.00045631,120]
[420324855,1775970773275,-272.0,0.00045631,120]
[420324856,1775970773304,-272.0,0.00045631,120]
[420324857,1775970773337,-272.0,0.00045631,120]
[420324858,1775970773367,-272.0,0.00045631,120]
[420324859,1775970773401,-272.0,0.00045631,120]
[420324860,1775970773437,-272.0,0.00045631,120]
[420324861,1775970773476,-272.0,0.00045631,120]
[420324862,1775970773520,-272.0,0.00045631,120]
[420324863,1775970773573,-460.402322,0.00045631,120]
[420324864,1775970773636,-5000.0,0.00045631,120]
[420324865,1775970773716,-5000.0,0.00045631,120]
[420324866,1775970773805,-5000.0,0.00045631,120]
[420324867,1775970773848,-5000.0,0.00045631,120]
[420324868,1775970773940,-5000.0,0.00045631,120]
[420324869,1775970774042,-5000.0,0.00045631,120]
[420324870,1775970774334,-18532.99,0.00045631,30]
[420324871,1775970774406,-5000.0,0.00045631,120]
[420324872,1775970774448,-5000.0,0.00045631,120]
[420324873,1775970774485,-5000.0,0.00045631,120]
[420324874,1775970774512,-5000.0,0.00045631,120]
[420324875,1775970774541,-5000.0,0.00045631,120]
[420324876,1775970774574,-6000.0,0.00045631,120]
[420324877,1775970774603,-6600.0,0.00045631,120]
[420324878,1775970774633,-1668.65254171,0.00045631,120]
[420324879,1775970774664,-58599.80328307,0.00045631,120]
[420324880,1775970774692,-1129091.96328342,0.00045631,30]
[420324881,1775970790314,-1823348.93312684,0.00045631,30]
[420324882,1775970790374,-12500.0,0.00045631,30]
[420324883,1775970790420,-5000.0,0.00045631,120]
[420324884,1775970790490,-50000.0,0.00045631,36]
[420324885,1775970790598,-50000.0,0.00045631,37]
[420324886,1775970790645,-50000.0,0.00045631,38]
[420324887,1775970790689,-50000.0,0.00045631,39]
[420324888,1775970790744,-1427.46342841,0.00045631,120]
[420324889,1775970790784,-1499998.97,0.00045631,120]
[420324890,1775970790833,-1150.0,0.00045631,120]
[420324891,1775970790875,-10000.0,0.00045631,120]
[420324892,1775970790923,-5678.0,0.00045631,90]
[420324893,1775970790957,-6789.0,0.00045631,120]
[420324894,1775970791025,-3456.0,0.00045631,120]
[420324895,1775970791076,-5000.0,0.00045631,90]
[420324896,1775970791110,-5000.0,0.00045631,100]
[420324897,1775970791154,-132082.12131995,0.00045631,30]
[420324898,1775970791196,-4000.0,0.00045631,60]
[420324899,1775970791228,-600000.0,0.00045631,120]
[420324900,1775970791262,-600000.0,0.00045631,120]
[420324901,1775970791690,-4356.80481015,0.00045631,120]
[420324902,1775970791747,-45093.17174309,0.00045631,30]
[420324903,1775970791787,-93575.82916564,0.00045631,60]
[420324904,1775970791843,-8762.74484787,0.00045631,120]
[420324905,1775970791878,-68969.5110981,0.00045631,30]
[420324906,1775970791914,-50000.0,0.00045631,40]
[420324907,1775970791974,-50000.0,0.00045631,41]
[420324908,1775970792013,-455481.8417113,0.00045631,30]
[420324909,1775970792071,-10000.0,0.00045631,120]
[420324910,1775970792111,-1469.95,0.00045631,120]
[420324911,1775970792149,-220.49,0.00045631,120]
[420324912,1775970792191,-1066.26,0.00045631,120]
[420324913,1775970792229,-159.93,0.00045631,120]
[420324914,1775970792263,-909.91,0.00045631,120]
[420324915,1775970792299,-115279.07337569,0.00045631,30]
[420324916,1775970792337,-5156.19,0.00045631,120]
[420324917,1775970792367,-9000.0,0.00045631,90]
[420324918,1775970792401,-9000.0,0.00045631,100]
[420324919,1775970792431,-9000.0,0.00045631,110]
[420324920,1775970792482,-10564.860825,0.00045631,120]
[420324921,1775970792522,-123979.45239574,0.00045631,30]
[420324922,1775970792559,-110679.79514423,0.00045631,30]
[420324923,1775970792603,-109739.92235573,0.00045631,30]
[420324924,1775970792665,-103751.5319557,0.00045631,30]
[420324925,1775970792715,-489.84530208,0.00045631,30]
[420324926,1775970792783,-293592.53161678,0.00045631,30]
[420324927,1775970792838,-158113.89988274,0.00045631,30]
[420324928,1775970792871,-102692.99999701,0.00045631,30]
[420324929,1775970792905,-26155.48966889,0.00045631,30]
[420324930,1775970792952,-35999.93363151,0.00045631,30]
[420324931,1775970792999,-164781.80924257,0.00045631,30]
[420324932,1775970793047,-20586.19725051,0.00045631,30]
[420324933,1775970793085,-28133.64177203,0.00045631,30]
[420324934,1775970793116,-32029.89087206,0.00045631,30]
[420324935,1775970793148,-109175.48980374,0.00045631,30]
[420324936,1775970793183,-1018801.59177489,0.00045631,30]
[420324937,1775970793218,-22364.7743045,0.00045631,30]
[420324938,1775970793254,-73219.72434704,0.00045631,30]
[420324939,1775970793300,-602214.42323021,0.00045631,120]
[420324940,1775970806532,-1972212.91676979,0.00045631,120]
[420324941,1775970806576,-21000.0,0.00045631,30]
[420324942,1775970806639,-21000.0,0.00045631,30]
[420324943,1775970806764,-21000.0,0.00045631,30]
[420324944,1775970806892,-21203.91,0.00045631,30]
[420324945,1775970806943,-21000.0,0.00045631,30]
[420324946,1775970806983,-21000.0,0.00045631,30]
[420324947,1775970807038,-21000.0,0.00045631,30]
[420324948,1775970807074,-21000.0,0.00045631,30]
[420324949,1775970807102,-458880.48,0.00045631,30]
[420324950,1775970807137,-200136.60462616,0.00045631,120]
[420324951,1775970807172,-375.45,0.00045631,30]
[420324952,1775970807206,-3500000.0,0.00045631,30]
[420324953,1775970807236,-1000000.0,0.00045631,60]
[420324954,1775970807275,-1000000.0,0.00045631,55]
[420324955,1775970807310,-700190.63860405,0.00045631,50]
[420324956,1775970822193,-299809.36139595,0.00045631,50]
[420324957,1775970822225,-1036187.0,0.00045631,45]
[420324958,1775970822266,-6072.15504854,0.00045631,30]
[420324959,1775970822305,-11836.39061346,0.00045631,120]
[420324960,1775970822370,-170.72574665,0.00045631,30]
[420324961,1775970822431,-500.0,0.00045631,120]
[420324962,1775970822473,-51100.0,0.00045631,60]
[420324963,1775970822511,-2263120.41972413,0.00045631,30]
[420324964,1775970822538,-1000.0,0.00045631,60]
[420324965,1775970822577,-200.0,0.00045631,120]
[420324966,1775970822618,-200.0,0.00045631,120]
[420324967,1775970822656,-200.0,0.00045631,120]
[420324968,1775970822683,-200.0,0.00045631,120]
[420324969,1775970822715,-200.0,0.00045631,120]
[420324970,1775970822741,-200.0,0.00045631,120]
[420324971,1775970822770,-201.06427515,0.00045631,120]
[420324972,1775970822801,-200.0,0.00045631,120]
[420324973,1775970822828,-200.0,0.00045631,120]
[420324974,1775970822861,-200.0,0.00045631,120]
[420324975,1775970822890,-200.0,0.00045631,120]
[420324976,1775970822920,-200.0,0.00045631,120]
[420324977,1775970822958,-200.0,0.00045631,120]
[420324978,1775970822989,-200.0,0.00045631,120]
[420324979,1775970823026,-283.37596555,0.00045631,120]
[420324980,1775970823072,-1000.0,0.00045631,30]
[420324981,1775970823138,-1000.0,0.00045631,120]
[420324982,1775970823190,-556.22722704,0.00045631,60]
[420324983,1775970823252,-1000.0,0.00045631,31]
[420324984,1775970823314,-1000.0,0.00045631,31]
[420324985,1775970823363,-1000.0,0.00045631,31]
[420324986,1775970823415,-1000.0,0.00045631,31]
[420324987,1775970823459,-1000.0,0.00045631,31]
[420324988,1775970823495,-1000.0,0.00045631,31]
[420324989,1775970823528,-1000.0,0.00045631,31]
[420324990,1775970823567,-1000.0,0.00045631,31]
[420324991,1775970823596,-1000.0,0.00045631,31]
[420324992,1775970823632,-1000.0,0.00045631,31]
[420324993,1775970823665,-1000.0,0.00045631,31]
[420324994,1775970823702,-1000.0,0.00045631,31]
[420324995,1775970823733,-1000.0,0.00045631,31]
[420324996,1775970823775,-1000.0,0.00045631,31]
[420324997,1775970823814,-1000.0,0.00045631,31]
[420324998,1775970823853,-1000.0,0.00045631,31]
[420324999,1775970823887,-1000.0,0.00045631,31]
[420325000,1775970823918,-1000.0,0.00045631,31]
[420325001,1775970823960,-1000.0,0.00045631,31]
[420325002,1775970823999,-1000.0,0.00045631,31]
[420325003,1775970824033,-1000.0,0.00045631,31]
[420325004,1775970824086,-1000.0,0.00045631,31]
[420325005,1775970824140,-1000.0,0.00045631,31]
[420325006,1775970824686,-1000.0,0.00045631,31]
[420325007,1775970824740,-1000.0,0.00045631,31]
[420325008,1775970824777,-1000.0,0.00045631,31]
[420325009,1775970824822,-1000.0,0.00045631,31]
[420325010,1775970824868,-1000.0,0.00045631,31]
[420325011,1775970824918,-1000.0,0.00045631,31]
[420325012,1775970824955,-1000.0,0.00045631,31]
[420325013,1775970824987,-1000.0,0.00045631,31]
[420325014,1775970825051,-1000.0,0.00045631,31]
[420325015,1775970825089,-1000.0,0.00045631,31]
[420325016,1775970825132,-1000.0,0.00045631,31]
[420325017,1775970825174,-1000.0,0.00045631,30]
[420325018,1775970825208,-1000.0,0.00045631,31]
[420325019,1775970825249,-1000.0,0.00045631,31]
[420325020,1775970825286,-1000.0,0.00045631,31]
[420325021,1775970825315,-1000.0,0.00045631,31]
[420325022,1775970825357,-1000.0,0.00045631,31]
[420325023,1775970825385,-1000.0,0.00045631,31]
[420325024,1775970825427,-100000.0,0.00045631,30]
[420325025,1775970825472,-1000.0,0.00045631,31]
[420325026,1775970825518,-1000.0,0.00045631,31]
[420325027,1775970825549,-1000.0,0.00045631,31]
[420325028,1775970825587,-1000.0,0.00045631,31]
[420325029,1775970825631,-1000.0,0.00045631,31]
[420325030,1775970825670,-1000.0,0.00045631,31]
[420325031,1775970825705,-1000.0,0.00045631,31]
[420325032,1775970825734,-1000.0,0.00045631,31]
[420325033,1775970825775,-1000.0,0.00045631,31]
[420325034,1775970825803,-1000.0,0.00045631,31]
[420325035,1775970825851,-1000.0,0.00045631,31]
[420325036,1775970825889,-1000.0,0.00045631,31]
[420325037,1775970825920,-1000.0,0.00045631,30]
[420325038,1775970825953,-1000.0,0.00045631,30]
[420325039,1775970825991,-1000.0,0.00045631,31]
[420325040,1775970826028,-1000.0,0.00045631,31]
[420325041,1775970826063,-1000.0,0.00045631,31]
[420325042,1775970826100,-1000.0,0.00045631,31]
[420325043,1775970826131,-1000.0,0.00045631,31]
[420325044,1775970826181,-1000.0,0.00045631,31]
[420325045,1775970826241,-1000.0,0.00045631,31]
[420325046,1775970826298,-1000.0,0.00045631,31]
[420325047,1775970826340,-1000.0,0.00045631,31]
[420325048,1775970826407,-1000.0,0.00045631,31]
[420325049,1775970826469,-1000.0,0.00045631,31]
[420325050,1775970826519,-1000.0,0.00045631,31]
[420325051,1775970826569,-1000.0,0.00045631,31]
[420325052,1775970826605,-1000.0,0.00045631,31]